fUST/lending_fUST_20250209
["ID","MTS","AMOUNT","RATE_DAILY","PERIOD"]
[352325393,1739043043404,-500.0,0.00011369,2]
[352325394,1739043043413,-500.0,0.00011369,2]
[352325395,1739043043424,-635.18,0.00011369,2]
[352325397,1739043043434,-500.0,0.00011369,2]
[352325398,1739043043443,-500.0,0.00011369,2]
[352325399,1739043043453,-500.0,0.00011369,2]
[352325400,1739043043462,-589.61,0.00011369,2]
[352325401,1739043043472,-500.0,0.00011369,2]
[352325402,1739043043482,-500.0,0.00011369,2]
[352325403,1739043043491,-500.0,0.00011369,2]
[352325405,1739043043501,-500.0,0.00011369,2]
[352325407,1739043043510,-586.66,0.00011369,2]
[352325409,1739043043520,-578.44,0.00011369,2]
[352325411,1739043043529,-500.0,0.00011369,2]
[352325413,1739043043539,-17352.59,0.00011369,2]
[352325415,1739043043549,-500.0,0.00011369,2]
[352325417,1739043043559,-760.46,0.00011369,2]
[352325419,1739043043568,-6970.56,0.00011369,2]
[352325421,1739043043578,-900.89,0.00011369,2]
[352325423,1739043043588,-500.0,0.00011369,2]
[352325425,1739043043598,-599.77,0.00011369,2]
[352325427,1739043043608,-688.34,0.00011369,2]
[352325429,1739043043618,-500.0,0.00011369,2]
[352325431,1739043043627,-580.0,0.00011369,2]
[352325433,1739043043636,-500.0,0.00011369,2]
[352325435,1739043043646,-2406.85,0.00011369,2]
[352325437,1739043043661,-500.0,0.00011369,2]
[352325439,1739043043672,-1843.18,0.00011369,2]
[352325441,1739043043682,-844.87,0.00011369,2]
[352325443,1739043043692,-500.0,0.00011369,2]
[352325445,1739043043704,-500.0,0.00011369,2]
[352325447,1739043043714,-750.26,0.00011369,2]
[352325449,1739043043725,-653.79,0.00011369,2]
[352325451,1739043043735,-500.0,0.00011369,2]
[352325453,1739043043745,-500.0,0.00011369,2]
[352325455,1739043043755,-875.46,0.00011369,2]
[352325457,1739043043766,-1360.49,0.00011369,2]
[352325459,1739043043775,-1673.7,0.00011369,2]
[352325461,1739043043785,-3722.93,0.00011369,2]
[352325464,1739043043795,-1344.73,0.00011369,2]
[352325466,1739043043804,-5376.4,0.00011369,2]
[352325467,1739043043814,-707.8,0.00011369,2]
[352325470,1739043043823,-500.0,0.00011369,2]
[352325472,1739043043833,-659.1,0.00011369,2]
[352325474,1739043043843,-500.0,0.00011369,2]
[352325476,1739043043852,-636.53,0.00011369,2]
[352325478,1739043043862,-500.0,0.00011369,2]
[352325480,1739043043871,-674.31,0.00011369,2]
[352325482,1739043043881,-1349.26,0.00011369,2]
[352325484,1739043043891,-500.0,0.00011369,2]
[352325486,1739043043900,-500.0,0.00011369,2]
[352325487,1739043043910,-476.18990478,0.00011369,2]
[352325490,1739043043920,-500.0,0.00011369,2]
[352325492,1739043043929,-587.61,0.00011369,2]
[352325494,1739043043939,-500.0,0.00011369,2]
[352325496,1739043043949,-1044.6,0.00011369,2]
[352325498,1739043043959,-500.0,0.00011369,2]
[352325500,1739043043969,-2642.94,0.00011369,2]
[352325502,1739043043979,-500.0,0.00011369,2]
[352325504,1739043043988,-1547.29,0.00011369,2]
[352325506,1739043043998,-500.0,0.00011369,2]
[352325508,1739043044007,-151.0,0.000114,2]
[352325510,1739043044017,-500.0,0.00011506,2]
[352325512,1739043044026,-797.06,0.00011506,2]
[352325513,1739043044036,-500.0,0.00011506,2]
[352325514,1739043044045,-831.62,0.00011506,2]
[352325515,1739043044055,-500.0,0.00011506,2]
[352325516,1739043044063,-500.0,0.00011506,2]
[352325517,1739043044073,-500.0,0.00011506,2]
[352325518,1739043044082,-500.0,0.00011506,2]
[352325519,1739043044091,-576.07,0.00011506,2]
[352325520,1739043044101,-738.94,0.00011506,2]
[352325521,1739043044150,-500.0,0.00011506,2]
[352325522,1739043044159,-500.0,0.00011506,2]
[352325523,1739043044168,-635.18,0.00011506,2]
[352325524,1739043044177,-500.0,0.00011506,2]
[352325525,1739043044186,-500.0,0.00011506,2]
[352325526,1739043044195,-500.0,0.00011506,2]
[352325527,1739043044205,-589.61,0.00011506,2]
[352325528,1739043044214,-500.0,0.00011506,2]
[352325529,1739043044224,-500.0,0.00011506,2]
[352325530,1739043044244,-500.0,0.00011506,2]
[352325531,1739043044253,-500.0,0.00011506,2]
[352325532,1739043044262,-586.66,0.00011506,2]
[352325533,1739043044271,-578.44,0.00011506,2]
[352325535,1739043044281,-500.0,0.00011506,2]
[352325537,1739043044290,-17352.59,0.00011506,2]
[352325539,1739043044299,-500.0,0.00011506,2]
[352325541,1739043044309,-760.46,0.00011506,2]
[352325544,1739043044318,-6970.56,0.00011506,2]
[352325545,1739043044328,-900.89,0.00011506,2]
[352325548,1739043044337,-500.0,0.00011506,2]
[352325550,1739043044349,-599.77,0.00011506,2]
[352325551,1739043044360,-688.34,0.00011506,2]
[352325554,1739043044369,-580.0,0.00011506,2]
[352325556,1739043044379,-500.0,0.00011506,2]
[352325558,1739043044391,-364.42582364,0.00011506,2]
[352325560,1739043044402,-2406.85,0.00011506,2]
[352325562,1739043044423,-500.0,0.00011506,2]
[352325564,1739043044444,-1843.18,0.00011506,2]
[352325566,1739043044457,-844.87,0.00011506,2]
[352325568,1739043044467,-500.0,0.00011506,2]
[352325569,1739043044477,-500.0,0.00011506,2]
[352325571,1739043044486,-750.26,0.00011506,2]
[352325573,1739043044496,-653.79,0.00011506,2]
[352325576,1739043044505,-500.0,0.00011506,2]
[352325578,1739043044515,-500.0,0.00011506,2]
[352325580,1739043044527,-875.46,0.00011506,2]
[352325582,1739043044536,-1360.49,0.00011506,2]
[352325584,1739043044546,-1673.7,0.00011506,2]
[352325586,1739043044556,-3722.93,0.00011506,2]
[352325588,1739043044565,-1344.73,0.00011506,2]
[352325590,1739043044575,-5376.4,0.00011506,2]
[352325592,1739043044586,-707.8,0.00011506,2]
[352325594,1739043044595,-500.0,0.00011506,2]
[352325596,1739043044605,-659.1,0.00011506,2]
[352325598,1739043044614,-500.0,0.00011506,2]
[352325600,1739043044623,-636.53,0.00011506,2]
[352325602,1739043044633,-500.0,0.00011506,2]
[352325604,1739043044643,-674.31,0.00011506,2]
[352325606,1739043044652,-1349.26,0.00011506,2]
[352325608,1739043044662,-500.0,0.00011506,2]
[352325610,1739043044671,-500.0,0.00011506,2]
[352325612,1739043044680,-500.0,0.00011506,2]
[352325614,1739043044689,-587.61,0.00011506,2]
[352325616,1739043044698,-500.0,0.00011506,2]
[352325617,1739043044709,-1044.6,0.00011506,2]
[352325620,1739043044719,-500.0,0.00011506,2]
[352325622,1739043044728,-2642.94,0.00011506,2]
[352325623,1739043044738,-500.0,0.00011506,2]
[352325626,1739043044747,-1547.29,0.00011506,2]
[352325628,1739043044757,-500.0,0.00011506,2]
[352325630,1739043044767,-305.74029623,0.00011553,2]
[352325632,1739043044776,-500.0,0.00011553,2]
[352325634,1739043044785,-500.0,0.00011564,2]
[352325636,1739043044794,-516.73243931,0.00011564,2]
[352325638,1739043044804,-500.0,0.00011564,2]
[352325640,1739043044814,-500.0,0.0001159,2]
[352325642,1739043044823,-151.0,0.000116,2]
[352325644,1739043044832,-431.595035,0.000116,2]
[352325646,1739043044841,-35000.000001,0.00011614,2]
[352325648,1739043044850,-590.07409029,0.00011615,2]
[352325649,1739043044859,-500.0,0.00011615,2]
[352325652,1739043044869,-261.26856444,0.00011615,2]
[352325653,1739043044879,-151.59975057,0.00011615,2]
[352325655,1739043044888,-500.0,0.00011643,2]
[352325657,1739043044898,-797.06,0.00011643,2]
[352325659,1739043044908,-500.0,0.00011643,2]
[352325661,1739043044917,-831.62,0.00011643,2]
[352325663,1739043044926,-500.0,0.00011643,2]
[352325665,1739043044936,-500.0,0.00011643,2]
[352325668,1739043044945,-500.0,0.00011643,2]
[352325670,1739043044956,-226.05334414,0.00011643,2]
[352325672,1739043044965,-576.07,0.00011643,2]
[352325674,1739043044975,-738.94,0.00011643,2]
[352325676,1739043044986,-500.0,0.00011643,2]
[352325678,1739043044996,-500.0,0.00011643,2]
[352325680,1739043045007,-635.18,0.00011643,2]
[352325682,1739043045017,-500.0,0.00011643,2]
[352325684,1739043045026,-500.0,0.00011643,2]
[352325686,1739043045036,-500.0,0.00011643,2]
[352325688,1739043045046,-589.61,0.00011643,2]
[352325690,1739043045055,-500.0,0.00011643,2]
[352325692,1739043045065,-500.0,0.00011643,2]
[352325694,1739043045075,-500.0,0.00011643,2]
[352325696,1739043045084,-500.0,0.00011643,2]
[352325698,1739043045094,-586.66,0.00011643,2]
[352325700,1739043045103,-578.44,0.00011643,2]
[352325702,1739043045113,-500.0,0.00011643,2]
[352325704,1739043045122,-17352.59,0.00011643,2]
[352325706,1739043045132,-500.0,0.00011643,2]
[352325708,1739043045141,-760.46,0.00011643,2]
[352325710,1739043045151,-6970.56,0.00011643,2]
[352325712,1739043045160,-900.89,0.00011643,2]
[352325714,1739043045170,-500.0,0.00011643,2]
[352325716,1739043045180,-599.77,0.00011643,2]
[352325718,1739043045190,-688.34,0.00011643,2]
[352325720,1739043045200,-580.0,0.00011643,2]
[352325722,1739043045210,-500.0,0.00011643,2]
[352325724,1739043045219,-2406.85,0.00011643,2]
[352325726,1739043045229,-500.0,0.00011643,2]
[352325728,1739043045239,-1843.18,0.00011643,2]
[352325730,1739043045249,-844.87,0.00011643,2]
[352325732,1739043045259,-500.0,0.00011643,2]
[352325734,1739043045269,-500.0,0.00011643,2]
[352325736,1739043045280,-750.26,0.00011643,2]
[352325738,1739043045290,-653.79,0.00011643,2]
[352325740,1739043045299,-189.0870215,0.00011643,2]
[352325742,1739043045309,-406.66251499,0.00011643,2]
[352325744,1739043045320,-875.46,0.00011643,2]
[352325746,1739043045330,-1360.49,0.00011643,2]
[352325748,1739043045340,-1673.7,0.00011643,2]
[352325750,1739043045352,-3722.93,0.00011643,2]
[352325752,1739043045361,-1344.73,0.00011643,2]
[352325754,1739043045371,-5376.4,0.00011643,2]
[352325756,1739043045381,-707.8,0.00011643,2]
[352325758,1739043045392,-500.0,0.00011643,2]
[352325760,1739043045402,-659.1,0.00011643,2]
[352325762,1739043045411,-500.0,0.00011643,2]
[352325764,1739043045421,-636.53,0.00011643,2]
[352325766,1739043045432,-500.0,0.00011643,2]
[352325768,1739043045442,-674.31,0.00011643,2]
[352325770,1739043045452,-1349.26,0.00011643,2]
[352325772,1739043045462,-500.0,0.00011643,2]
[352325774,1739043045471,-500.0,0.00011643,2]
[352325776,1739043045481,-500.0,0.00011643,2]
[352325778,1739043045490,-587.61,0.00011643,2]
[352325780,1739043045500,-500.0,0.00011643,2]
[352325782,1739043045509,-1044.6,0.00011643,2]
[352325784,1739043045519,-500.0,0.00011643,2]
[352325786,1739043045528,-2642.94,0.00011643,2]
[352325787,1739043045537,-1547.29,0.00011643,2]
[352325790,1739043045547,-500.0,0.00011643,2]
[352325792,1739043045557,-500.0,0.00011643,2]
[352325794,1739043045566,-500.0,0.00011647,2]
[352325795,1739043045575,-187.20311775,0.00011647,2]
[352325797,1739043045585,-164.43486954,0.00011647,2]
[352325800,1739043045594,-500.0,0.0001178,2]
[352325802,1739043045604,-797.06,0.0001178,2]
[352325804,1739043045615,-500.0,0.0001178,2]
[352325806,1739043045624,-831.62,0.0001178,2]
[352325808,1739043045634,-500.0,0.0001178,2]
[352325809,1739043045645,-500.0,0.0001178,2]
[352325811,1739043045654,-500.0,0.0001178,2]
[352325813,1739043045663,-576.07,0.0001178,2]
[352325816,1739043045672,-738.94,0.0001178,2]
[352325817,1739043045682,-500.0,0.0001178,2]
[352325820,1739043045691,-500.0,0.0001178,2]
[352325822,1739043045700,-635.18,0.0001178,2]
[352325824,1739043045709,-500.0,0.0001178,2]
[352325825,1739043045718,-500.0,0.0001178,2]
[352325827,1739043045728,-500.0,0.0001178,2]
[352325829,1739043045737,-589.61,0.0001178,2]
[352325831,1739043045746,-500.0,0.0001178,2]
[352325833,1739043045755,-500.0,0.0001178,2]
[352325835,1739043045764,-500.0,0.0001178,2]
[352325837,1739043045773,-500.0,0.0001178,2]
[352325839,1739043045782,-586.66,0.0001178,2]
[352325841,1739043045791,-578.44,0.0001178,2]
[352325843,1739043045801,-500.0,0.0001178,2]
[352325845,1739043045810,-17352.59,0.0001178,2]
[352325847,1739043045819,-500.0,0.0001178,2]
[352325849,1739043045829,-760.46,0.0001178,2]
[352325851,1739043045838,-6970.56,0.0001178,2]
[352325854,1739043045848,-900.89,0.0001178,2]
[352325855,1739043045858,-500.0,0.0001178,2]
[352325858,1739043045867,-599.77,0.0001178,2]
[352325860,1739043045876,-688.34,0.0001178,2]
[352325862,1739043045886,-580.0,0.0001178,2]
[352325864,1739043045895,-500.0,0.0001178,2]
[352325866,1739043045906,-2406.85,0.0001178,2]
[352325868,1739043045915,-500.0,0.0001178,2]
[352325870,1739043045925,-1843.18,0.0001178,2]
[352325872,1739043045934,-844.87,0.0001178,2]
[352325874,1739043045944,-500.0,0.0001178,2]
[352325876,1739043045954,-500.0,0.0001178,2]
[352325878,1739043045963,-750.26,0.0001178,2]
[352325880,1739043045973,-653.79,0.0001178,2]
[352325882,1739043045982,-875.46,0.0001178,2]
[352325884,1739043045992,-1360.49,0.0001178,2]
[352325886,1739043046001,-1673.7,0.0001178,2]
[352325888,1739043046011,-3722.93,0.0001178,2]
[352325890,1739043046020,-1344.73,0.0001178,2]
[352325892,1739043046029,-5376.4,0.0001178,2]
[352325894,1739043046039,-707.8,0.0001178,2]
[352325896,1739043046049,-500.0,0.0001178,2]
[352325898,1739043046058,-659.1,0.0001178,2]
[352325900,1739043046068,-500.0,0.0001178,2]
[352325902,1739043046078,-636.53,0.0001178,2]
[352325904,1739043046088,-500.0,0.0001178,2]
[352325906,1739043046097,-674.31,0.0001178,2]
[352325909,1739043046108,-1349.26,0.0001178,2]
[352325910,1739043046117,-500.0,0.0001178,2]
[352325912,1739043046127,-500.0,0.0001178,2]
[352325914,1739043046136,-500.0,0.0001178,2]
[352325916,1739043046145,-587.61,0.0001178,2]
[352325918,1739043046155,-500.0,0.0001178,2]
[352325920,1739043046165,-1044.6,0.0001178,2]
[352325922,1739043046174,-500.0,0.0001178,2]
[352325925,1739043046183,-2642.94,0.0001178,2]
[352325927,1739043046193,-1547.29,0.0001178,2]
[352325929,1739043046202,-622.52370592,0.0001178,2]
[352325931,1739043046212,-500.0,0.0001178,2]
[352325933,1739043046221,-151.0,0.000118,2]
[352325935,1739043046231,-1000.0,0.00011838,2]
[352325937,1739043046240,-2500.0,0.00011872,2]
[352325939,1739043046250,-2500.0,0.00011881,2]
[352325941,1739043046259,-2500.0,0.0001189,2]
[352325943,1739043046268,-2500.0,0.00011898,2]
[352325945,1739043046278,-151.0,0.000119,2]
[352325947,1739043046287,-643.358,0.000119,2]
[352325949,1739043046297,-2500.0,0.00011907,2]
[352325952,1739043046308,-592.8829302,0.00011916,2]
[352325954,1739043046317,-2500.0,0.00011916,2]
[352325956,1739043046327,-500.0,0.00011916,2]
[352325958,1739043046336,-273.46324749,0.00011916,2]
[352325960,1739043046346,-500.0,0.00011917,2]
[352325961,1739043046358,-797.06,0.00011917,2]
[352325963,1739043046368,-500.0,0.00011917,2]
[352325965,1739043046377,-831.62,0.00011917,2]
[352325968,1739043046387,-500.0,0.00011917,2]
[352325969,1739043046396,-500.0,0.00011917,2]
[352325972,1739043046406,-500.0,0.00011917,2]
[352325974,1739043046416,-576.07,0.00011917,2]
[352325976,1739043046426,-738.94,0.00011917,2]
[352325978,1739043046436,-500.0,0.00011917,2]
[352325980,1739043046445,-500.0,0.00011917,2]
[352325982,1739043046456,-635.18,0.00011917,2]
[352325984,1739043046465,-500.0,0.00011917,2]
[352325986,1739043046474,-500.0,0.00011917,2]
[352325988,1739043046483,-500.0,0.00011917,2]
[352325990,1739043046493,-589.61,0.00011917,2]
[352325992,1739043046503,-500.0,0.00011917,2]
[352325994,1739043046513,-500.0,0.00011917,2]
[352325996,1739043046522,-500.0,0.00011917,2]
[352325998,1739043046531,-500.0,0.00011917,2]
[352326000,1739043046541,-586.66,0.00011917,2]
[352326002,1739043046551,-578.44,0.00011917,2]
[352326004,1739043046560,-500.0,0.00011917,2]
[352326006,1739043046570,-17352.59,0.00011917,2]
[352326008,1739043046580,-500.0,0.00011917,2]
[352326010,1739043046590,-760.46,0.00011917,2]
[352326012,1739043046599,-6970.56,0.00011917,2]
[352326014,1739043046609,-900.89,0.00011917,2]
[352326016,1739043046618,-500.0,0.00011917,2]
[352326018,1739043046628,-599.77,0.00011917,2]
[352326020,1739043046638,-688.34,0.00011917,2]
[352326022,1739043046648,-580.0,0.00011917,2]
[352326024,1739043046658,-500.0,0.00011917,2]
[352326026,1739043046667,-2406.85,0.00011917,2]
[352326028,1739043046676,-500.0,0.00011917,2]
[352326030,1739043046686,-1843.18,0.00011917,2]
[352326032,1739043046695,-844.87,0.00011917,2]
[352326034,1739043046706,-500.0,0.00011917,2]
[352326036,1739043046716,-500.0,0.00011917,2]
[352326038,1739043046726,-750.26,0.00011917,2]
[352326040,1739043046736,-653.79,0.00011917,2]
[352326042,1739043046745,-875.46,0.00011917,2]
[352326044,1739043046755,-1360.49,0.00011917,2]
[352326046,1739043046765,-1673.7,0.00011917,2]
[352326048,1739043046774,-3722.93,0.00011917,2]
[352326051,1739043046784,-1344.73,0.00011917,2]
[352326053,1739043046793,-5376.4,0.00011917,2]
[352326055,1739043046803,-707.8,0.00011917,2]
[352326056,1739043046812,-500.0,0.00011917,2]
[352326058,1739043046822,-659.1,0.00011917,2]
[352326061,1739043046831,-500.0,0.00011917,2]
[352326063,1739043046841,-636.53,0.00011917,2]
[352326065,1739043046850,-500.0,0.00011917,2]
[352326067,1739043046860,-674.31,0.00011917,2]
[352326069,1739043046870,-1349.26,0.00011917,2]
[352326071,1739043046879,-500.0,0.00011917,2]
[352326073,1739043046889,-500.0,0.00011917,2]
[352326075,1739043046898,-500.0,0.00011917,2]
[352326077,1739043046908,-587.61,0.00011917,2]
[352326079,1739043046917,-500.0,0.00011917,2]
[352326081,1739043046927,-1044.6,0.00011917,2]
[352326083,1739043046936,-500.0,0.00011917,2]
[352326085,1739043046946,-2642.94,0.00011917,2]
[352326087,1739043046955,-1547.29,0.00011917,2]
[352326089,1739043046965,-500.0,0.00011917,2]
[352326091,1739043046975,-166.368594,0.00011962,5]
[352326093,1739043046984,-1975.0,0.00011991,2]
[352326095,1739043046994,-537.0,0.00011991,2]
[352326097,1739043047004,-2296.0,0.00011991,2]
[352326099,1739043047014,-396.0,0.00011991,2]
[352326101,1739043047024,-649.58005084,0.00012,3]
[352326103,1739043047034,-153.0,0.00012,2]
[352326105,1739043047043,-153.0,0.00012,2]
[352326107,1739043047053,-153.0,0.00012,2]
[352326109,1739043047063,-153.0,0.00012,2]
[352326112,1739043047072,-420.0,0.00012041,2]
[352326114,1739043047082,-500.0,0.00012054,2]
[352326116,1739043047091,-797.06,0.00012054,2]
[352326118,1739043047101,-500.0,0.00012054,2]
[352326120,1739043047110,-831.62,0.00012054,2]
[352326122,1739043047120,-500.0,0.00012054,2]
[352326124,1739043047129,-500.0,0.00012054,2]
[352326126,1739043047139,-500.0,0.00012054,2]
[352326128,1739043047148,-576.07,0.00012054,2]
[352326129,1739043047157,-738.94,0.00012054,2]
[352326132,1739043047167,-500.0,0.00012054,2]
[352326134,1739043047176,-500.0,0.00012054,2]
[352326136,1739043047186,-635.18,0.00012054,2]
[352326138,1739043047196,-500.0,0.00012054,2]
[352326139,1739043047206,-500.0,0.00012054,2]
[352326141,1739043047216,-500.0,0.00012054,2]
[352326144,1739043047225,-589.61,0.00012054,2]
[352326146,1739043047235,-500.0,0.00012054,2]
[352326148,1739043047244,-500.0,0.00012054,2]
[352326150,1739043047254,-500.0,0.00012054,2]
[352326152,1739043047264,-500.0,0.00012054,2]
[352326154,1739043047273,-586.66,0.00012054,2]
[352326156,1739043047285,-578.44,0.00012054,2]
[352326158,1739043047295,-500.0,0.00012054,2]
[352326160,1739043047305,-17352.59,0.00012054,2]
[352326162,1739043047315,-500.0,0.00012054,2]
[352326164,1739043047325,-760.46,0.00012054,2]
[352326166,1739043047335,-6970.56,0.00012054,2]
[352326168,1739043047347,-900.89,0.00012054,2]
[352326170,1739043047359,-500.0,0.00012054,2]
[352326172,1739043047370,-599.77,0.00012054,2]
[352326174,1739043047380,-688.34,0.00012054,2]
[352326176,1739043047391,-580.0,0.00012054,2]
[352326178,1739043047401,-500.0,0.00012054,2]
[352326180,1739043047411,-2406.85,0.00012054,2]
[352326182,1739043047421,-500.0,0.00012054,2]
[352326184,1739043047432,-1843.18,0.00012054,2]
[352326186,1739043047444,-844.87,0.00012054,2]
[352326189,1739043047456,-500.0,0.00012054,2]
[352326191,1739043047466,-500.0,0.00012054,2]
[352326193,1739043047477,-750.26,0.00012054,2]
[352326195,1739043047489,-653.79,0.00012054,2]
[352326197,1739043047500,-875.46,0.00012054,2]
[352326199,1739043047510,-1360.49,0.00012054,2]
[352326201,1739043047523,-1673.7,0.00012054,2]
[352326203,1739043047534,-3722.93,0.00012054,2]
[352326205,1739043047544,-1344.73,0.00012054,2]
[352326207,1739043047553,-5376.4,0.00012054,2]
[352326209,1739043047563,-707.8,0.00012054,2]
[352326211,1739043047574,-500.0,0.00012054,2]
[352326213,1739043047585,-659.1,0.00012054,2]
[352326216,1739043047596,-500.0,0.00012054,2]
[352326218,1739043047606,-636.53,0.00012054,2]
[352326220,1739043047616,-500.0,0.00012054,2]
[352326222,1739043047626,-674.31,0.00012054,2]
[352326224,1739043047636,-1349.26,0.00012054,2]
[352326226,1739043047646,-500.0,0.00012054,2]
[352326228,1739043047656,-500.0,0.00012054,2]
[352326230,1739043047666,-500.0,0.00012054,2]
[352326232,1739043047676,-587.61,0.00012054,2]
[352326234,1739043047686,-500.0,0.00012054,2]
[352326236,1739043047696,-1044.6,0.00012054,2]
[352326238,1739043047707,-500.0,0.00012054,2]
[352326240,1739043047718,-2642.94,0.00012054,2]
[352326242,1739043047728,-1547.29,0.00012054,2]
[352326244,1739043047739,-500.0,0.00012054,2]
[352326246,1739043047751,-500.0,0.00012094,2]
[352326249,1739043047763,-2400.0,0.00012094,2]
[352326251,1739043047774,-600.0,0.00012098,2]
[352326253,1739043047785,-151.0,0.000121,2]
[352326255,1739043047800,-166.368594,0.00012105,5]
[352326257,1739043047811,-1500.0,0.00012112,2]
[352326259,1739043047822,-500.0,0.00012112,2]
[352326262,1739043047832,-354.7727591,0.00012137,2]
[352326263,1739043047842,-354.7727591,0.00012137,2]
[352326265,1739043047853,-354.7727591,0.00012137,2]
[352326268,1739043047863,-354.7727591,0.00012137,2]
[352326270,1739043047874,-354.7727591,0.00012137,2]
[352326272,1739043047885,-354.7727591,0.00012137,2]
[352326274,1739043047894,-354.7727591,0.00012137,2]
[352326276,1739043047905,-354.7727591,0.00012137,2]
[352326278,1739043047919,-354.7727591,0.00012137,2]
[352326280,1739043047932,-354.7727591,0.00012137,2]
[352326282,1739043047943,-354.7727591,0.00012137,2]
[352326284,1739043047954,-1000.0,0.00012163,2]
[352326286,1739043047965,-151.0,0.00012191,2]
[352326288,1739043047975,-151.0,0.00012191,2]
[352326290,1739043047986,-500.0,0.00012191,2]
[352326292,1739043047996,-797.06,0.00012191,2]
[352326294,1739043048006,-500.0,0.00012191,2]
[352326296,1739043048016,-831.62,0.00012191,2]
[352326298,1739043048026,-500.0,0.00012191,2]
[352326300,1739043048037,-500.0,0.00012191,2]
[352326303,1739043048048,-500.0,0.00012191,2]
[352326305,1739043048058,-576.07,0.00012191,2]
[352326307,1739043048068,-738.94,0.00012191,2]
[352326309,1739043048079,-500.0,0.00012191,2]
[352326311,1739043048090,-500.0,0.00012191,2]
[352326329,1739043048259,-635.18,0.00012191,2]
[352326331,1739043048270,-500.0,0.00012191,2]
[352326334,1739043048281,-158.26600635,0.00012191,2]
[352326336,1739043048292,-500.0,0.00012191,2]
[352326338,1739043048302,-589.61,0.00012191,2]
[352326340,1739043048312,-500.0,0.00012191,2]
[352326342,1739043048321,-500.0,0.00012191,2]
[352326344,1739043048332,-500.0,0.00012191,2]
[352326346,1739043048342,-500.0,0.00012191,2]
[352326347,1739043048354,-586.66,0.00012191,2]
[352326348,1739043048364,-578.44,0.00012191,2]
[352326349,1739043048374,-500.0,0.00012191,2]
[352326350,1739043048384,-17352.59,0.00012191,2]
[352326351,1739043048395,-500.0,0.00012191,2]
[352326352,1739043048405,-760.46,0.00012191,2]
[352326353,1739043048415,-6970.56,0.00012191,2]
[352326354,1739043048426,-900.89,0.00012191,2]
[352326355,1739043048437,-500.0,0.00012191,2]
[352326356,1739043048448,-599.77,0.00012191,2]
[352326357,1739043048459,-688.34,0.00012191,2]
[352326358,1739043048470,-580.0,0.00012191,2]
[352326359,1739043048482,-500.0,0.00012191,2]
[352326360,1739043048493,-2406.85,0.00012191,2]
[352326361,1739043048504,-500.0,0.00012191,2]
[352326362,1739043048514,-1843.18,0.00012191,2]
[352326363,1739043048525,-844.87,0.00012191,2]
[352326364,1739043048536,-500.0,0.00012191,2]
[352326365,1739043048546,-500.0,0.00012191,2]
[352326367,1739043048556,-750.26,0.00012191,2]
[352326369,1739043048566,-653.79,0.00012191,2]
[352326371,1739043048577,-875.46,0.00012191,2]